bitfinex/quotes_SOLUSD_20250506
["timestamp","ask_amount","ask_price","bid_price","bid_amount"]
[1746492641737,147.74877802,146.25,146.21,9.24877802]
[1746492642229,9.24877802,146.24,146.2,29.38872309]
[1746492643145,9.24877802,146.23,146.2,29.38872309]
[1746492643623,9.24877802,146.23,146.2,20.13994507]
[1746492647426,9.24877802,146.24,146.2,29.38872309]
[1746492648537,9.24877802,146.24,146.21,9.24877802]
[1746492649416,9.24877802,146.24,146.21,16.08819096]
[1746492650033,138.5,146.25,146.21,16.08819096]
[1746492650330,147.74877802,146.25,146.21,16.08819096]
[1746492650723,9.24877802,146.24,146.21,16.08819096]
[1746492651039,9.24877802,146.24,146.21,6.83941294]
[1746492651338,9.24877802,146.24,146.21,16.08819096]
[1746492651729,9.24877802,146.24,146.21,6.83941294]
[1746492651939,147.74877802,146.25,146.21,16.08819096]
[1746492653643,9.24877802,146.24,146.21,6.83941294]
[1746492654545,9.24877802,146.24,146.21,16.08819096]
[1746492654742,9.24877802,146.24,146.21,6.83941294]
[1746492660557,147.74877802,146.25,146.21,6.83941294]
[1746492662527,9.24877802,146.24,146.21,6.83941294]
[1746492662728,138.5,146.25,146.21,6.83941294]
[1746492663038,147.74877802,146.25,146.21,16.08819096]
[1746492667434,138.5,146.25,146.21,16.08819096]
[1746492667634,6.5195,146.27,146.23,9.24877802]
[1746492667839,15.76827802,146.27,146.23,9.24877802]
[1746492669339,15.76827802,146.27,146.24,6.83807439]
[1746492669536,15.76827802,146.27,146.25,13.28]
[1746492670752,15.76827802,146.27,146.25,20.11749786]
[1746492673056,9.24877802,146.27,146.25,20.11749786]
[1746492673256,9.24877802,146.29,146.25,29.36627588]
[1746492674252,6.004,146.31,146.27,9.24877802]
[1746492674553,15.25277802,146.31,146.27,9.24877802]
[1746492675131,15.25277802,146.31,146.28,6.83620453]
[1746492675335,15.25277802,146.31,146.27,16.08527034]
[1746492675540,9.24877802,146.28,146.25,20.1174399]
[1746492675735,9.24877802,146.27,146.25,13.28]
[1746492675952,9.24877802,146.26,146.25,13.28]
[1746492682362,7.768,146.27,146.25,13.28]
[1746492682549,15.50797802,146.27,146.25,13.28]
[1746492684563,9.24877802,146.28,146.25,13.28]
[1746492685063,9.24877802,146.27,146.25,13.28]
[1746492685868,9.24877802,146.26,146.25,13.28]
[1746492692574,9.24877802,146.26,146.23,13.28]
[1746492693779,9.24877802,146.25,146.23,13.28]
[1746492694874,171.33635859,146.28,146.21,6.83929474]
[1746492694875,9.24877802,146.24,146.21,6.83929474]
[1746492695175,9.24877802,146.24,146.22,13.28]
[1746492695363,9.24877802,146.23,146.22,13.28]
[1746492696776,16.08732004,146.23,146.18,20.1207769]
[1746492697076,9.24877802,146.22,146.18,20.1207769]
[1746492697277,147.74877802,146.24,146.19,9.24877802]
[1746492697451,138.5,146.24,146.21,9.24877802]
[1746492697653,26.0,146.25,146.22,9.24877802]
[1746492697966,26.0,146.25,146.23,13.28]
[1746492698479,9.24877802,146.26,146.23,20.11848423]
[1746492698861,9.24877802,146.25,146.23,13.28]
[1746492699068,9.24877802,146.24,146.23,13.28]
[1746492703985,9.24877802,146.24,146.23,20.11854202]
[1746492704289,138.5,146.27,146.23,29.36732004]
[1746492704785,147.74877802,146.27,146.23,29.36732004]
[1746492705184,9.24877802,146.26,146.23,20.11854202]
[1746492705988,14.43353851,146.26,146.23,20.11854202]
[1746492706665,152.93353851,146.27,146.23,34.55208053]
[1746492708384,138.5,146.27,146.23,34.55208053]
[1746492708577,138.5,146.27,146.24,14.43353851]
[1746492710489,138.5,146.27,146.25,6.83760683]
[1746492711367,152.93353851,146.27,146.25,6.83760683]
[1746492711685,152.93353851,146.27,146.24,6.83790421]
[1746492712571,14.43353851,146.26,146.24,6.83790421]
[1746492712772,14.43353851,146.26,146.23,20.11840584]
[1746492713097,14.43353851,146.26,146.23,20.11852089]
[1746492713469,14.43353851,146.26,146.23,13.28]
[1746492714183,14.43353851,146.26,146.23,20.11848552]
[1746492717780,14.43353851,146.25,146.23,20.11848552]
[1746492717981,14.43353851,146.25,146.23,13.28]
[1746492718183,14.43353851,146.24,146.23,13.28]
[1746492718886,151.78028087,146.27,146.23,13.28]
[1746492718887,14.43353851,146.25,146.23,13.28]
[1746492719089,14.43353851,146.24,146.23,13.28]
[1746492720300,14.43353851,146.26,146.23,20.11854202]
[1746492720675,144.9436,146.27,146.23,20.11854202]
[1746492721082,14.43353851,146.26,146.23,20.11854202]
[1746492721496,144.9436,146.27,146.23,20.11854202]
[1746492721714,159.37713851,146.27,146.23,34.55208053]
[1746492722010,159.37713851,146.27,146.23,20.11854202]
[1746492722990,159.37713851,146.27,146.24,20.11790208]
[1746492724703,144.9436,146.27,146.24,20.11790208]
[1746492724896,138.5,146.27,146.24,20.11790208]
[1746492725909,152.93353851,146.27,146.24,20.11790208]
[1746492729701,138.5,146.27,146.24,20.11790208]
[1746492729917,152.93353851,146.27,146.24,20.11790208]
[1746492730299,14.43353851,146.26,146.24,13.28]
[1746492732381,14.43353851,146.25,146.24,13.28]
[1746492732576,14.43353851,146.26,146.24,13.28]
[1746492734616,14.43353851,146.26,146.24,20.11803573]
[1746492734786,152.93353851,146.27,146.24,20.11803573]
[1746492734985,138.5,146.27,146.24,34.55157424]
[1746492737307,138.5,146.27,146.24,20.11803573]
[1746492737606,138.5,146.27,146.24,34.55157424]
[1746492737791,14.43353851,146.3,146.26,14.43353851]
[1746492738194,20.87993851,146.31,146.27,14.43353851]
[1746492738714,20.87993851,146.31,146.28,6.83620453]
[1746492739604,6.4464,146.31,146.28,6.83620453]
[1746492739804,14.43353851,146.32,146.29,13.28]
[1746492740621,14.43353851,146.32,146.29,20.11569008]
[1746492745598,14.43353851,146.31,146.29,20.11569008]
[1746492746012,138.5,146.33,146.29,20.11569008]
[1746492746214,14.43353851,146.31,146.29,20.11569008]
[1746492749705,138.5,146.33,146.29,20.11569008]
[1746492749906,9.23142037,146.32,146.29,20.11569008]
[1746492750595,138.5,146.33,146.29,20.11569008]
[1746492750810,9.23142037,146.32,146.29,20.11569008]
[1746492751705,138.5,146.33,146.29,20.11569008]
[1746492751904,9.23142037,146.32,146.29,20.11569008]
[1746492752502,9.23142037,146.3,146.29,13.28]
[1746492752916,9.23142037,146.3,146.29,20.11573723]
[1746492753935,14.42554157,146.31,146.29,20.11573723]
[1746492755611,14.42554157,146.3,146.29,13.28]
[1746492767525,21.2604191,146.31,146.29,13.28]
[1746492767731,14.42554157,146.3,146.29,13.28]
[1746492767934,22.66564157,146.3,146.29,13.28]
[1746492768109,37.09118314,146.3,146.29,13.28]
[1746492768425,37.09118314,146.3,146.25,13.28]
[1746492768610,14.42554157,146.26,146.25,13.28]
[1746492769615,14.42554157,146.27,146.25,13.28]
[1746492773739,9.23724543,146.27,146.25,13.28]
[1746492780246,9.23724543,146.26,146.25,13.28]
[1746492783262,9.23724543,146.27,146.25,13.28]
[1746492783433,9.23724543,146.28,146.25,13.28]
[1746492783624,147.73724543,146.29,146.25,29.3547452]
[1746492784040,9.23724543,146.28,146.25,20.11749977]
[1746492790048,138.5,146.29,146.25,20.11749977]
[1746492790239,9.23724543,146.28,146.25,20.11749977]
[1746492797454,9.23724543,146.27,146.25,20.11749977]
[1746492798656,9.21133976,146.27,146.25,20.11749977]
[1746492798956,9.23724543,146.27,146.25,20.11749977]
[1746492799655,9.23724543,146.27,146.25,13.28]
[1746492803855,9.23724543,146.26,146.25,13.28]
[1746492804230,147.73724543,146.26,146.19,236.6844]
[1746492804533,9.23724543,146.22,146.2,13.28]
[1746492805165,9.23724543,146.21,146.2,13.28]
[1746492809061,16.07682736,146.21,146.16,13.28]
[1746492809262,9.23724543,146.18,146.16,13.28]
[1746492810764,9.23724543,146.19,146.16,13.28]
[1746492811261,9.23724543,146.19,146.17,6.84134911]
[1746492811964,14.44870414,146.19,146.17,6.84134911]
[1746492815849,138.5,146.2,146.17,6.84134911]
[1746492816164,14.44870414,146.19,146.17,6.84134911]
[1746492822866,152.94870414,146.2,146.17,6.84134911]
[1746492826168,138.5,146.2,146.17,6.84134911]
[1746492826368,152.94870414,146.2,146.17,6.84134911]
[1746492829667,138.5,146.2,146.17,21.29005325]
[1746492831783,147.74573081,146.2,146.17,6.84134911]
[1746492832690,138.5,146.2,146.17,16.08707992]
[1746492832891,138.5,146.2,146.18,9.24573081]
[1746492833095,138.5,146.2,146.19,9.24573081]
[1746492833279,26.0,146.22,146.19,9.24573081]
[1746492833890,26.0,146.22,146.2,6.83994528]
[1746492834395,9.24573081,146.23,146.2,6.83994528]
[1746492834591,9.24573081,146.23,146.19,9.24573081]
[1746492834592,9.24573081,146.22,146.19,6.84021593]
[1746492834780,171.33810708,146.24,146.18,6.84073601]
[1746492834977,9.24573081,146.22,146.18,16.08646682]
[1746492835698,9.24573081,146.22,146.19,13.28]
[1746492836577,9.24573081,146.22,146.19,20.12032757]
[1746492839188,164.5,146.24,146.19,29.36605838]
[1746492839495,173.74573081,146.24,146.2,9.24573081]
[1746492840573,9.24573081,146.23,146.19,29.36605838]
[1746492840779,9.24573081,146.2,146.19,13.28]
[1746492841298,9.24573081,146.21,146.19,13.28]
[1746492841594,147.74573081,146.22,146.19,13.28]
[1746492842998,9.24573081,146.21,146.19,13.28]
[1746492847206,154.5848318,146.22,146.19,13.28]
[1746492850186,9.24573081,146.21,146.19,13.25409432]
[1746492850584,9.24573081,146.2,146.19,13.25409432]
[1746492852303,147.74573081,146.2,146.19,13.25409432]
[1746492855904,154.58567609,146.2,146.19,13.25409432]
[1746492856601,154.58567609,146.2,146.17,13.28]
[1746492857602,147.74573081,146.2,146.17,13.28]
[1746492864912,138.5,146.2,146.17,13.28]
[1746492865114,138.5,146.2,146.17,29.36698263]
[1746492865304,138.5,146.2,146.19,9.24573081]
[1746492867811,138.5,146.2,146.19,16.08614397]
[1746492868201,138.5,146.26,146.19,33.18717687]
[1746492868408,138.5,146.26,146.23,9.24573081]
[1746492868619,138.5,146.26,146.24,22.52573081]
[1746492869419,9.24573081,146.28,146.24,22.52573081]
[1746492869613,26.0,146.27,146.24,29.36378341]
[1746492870115,35.24573081,146.27,146.24,13.28]
[1746492871222,9.24573081,146.26,146.24,13.28]
[1746492871723,35.24573081,146.27,146.24,13.28]
[1746492875724,42.08241476,146.27,146.24,13.28]
[1746492877135,9.24573081,146.26,146.24,13.28]
[1746492878525,42.08241476,146.27,146.24,13.28]
[1746492880436,26.0,146.27,146.24,22.52573081]
[1746492882032,138.5,146.28,146.25,9.24573081]
[1746492883012,138.5,146.28,146.25,16.08328195]
[1746492885024,147.74573081,146.28,146.24,29.3636145]
[1746492888931,138.5,146.28,146.25,9.24573081]
[1746492890523,147.74573081,146.28,146.24,29.3636145]
[1746492894646,138.5,146.28,146.25,9.24573081]
[1746492894837,147.74573081,146.28,146.24,29.3636145]
[1746492898041,138.5,146.28,146.24,29.3636145]
[1746492898344,138.5,146.28,146.25,9.24573081]
[1746492901050,138.5,146.28,146.24,29.3636145]
[1746492903051,138.5,146.28,146.25,13.26]
[1746492903848,138.5,146.28,146.25,29.34329756]
[1746492907850,138.5,146.28,146.26,13.26]
[1746492911754,138.5,146.28,146.26,20.09712377]
[1746492912262,9.24573081,146.31,146.26,29.34285458]
[1746492912469,9.24573081,146.31,146.27,9.24573081]
[1746492913059,9.24573081,146.31,146.26,29.34285458]
[1746492914061,9.24573081,146.31,146.27,16.08224712]
[1746492914462,144.6831,146.32,146.28,9.24573081]
[1746492914676,144.6831,146.32,146.27,6.83651631]
[1746492914677,138.5,146.32,146.29,9.24573081]
[1746492916257,138.5,146.32,146.29,16.08138259]
[1746492917948,138.5,146.32,146.3,9.24573081]
[1746492918260,138.5,146.32,146.31,13.26]
[1746492921167,36.80043081,146.33,146.31,13.26]
[1746492921865,138.5,146.35,146.31,13.26]
[1746492922070,173.74573081,146.35,146.31,22.50573081]
[1746492922361,173.74573081,146.35,146.31,13.26]
[1746492922949,180.57879455,146.35,146.31,13.26]
[1746492923261,171.33306374,146.35,146.31,22.50573081]
[1746492923443,164.5,146.35,146.32,9.24573081]
[1746492924771,138.5,146.35,146.33,9.24573081]
[1746492925062,138.5,146.35,146.32,6.83420264]
[1746492925063,22.68676299,146.36,146.32,9.24573081]
[1746492926977,15.85413081,146.36,146.32,16.08003617]
[1746492927144,9.24573081,146.37,146.33,9.24573081]
[1746492927350,156.07945026,146.38,146.34,9.24573081]
[1746492928673,138.5,146.38,146.34,9.24573081]
[1746492928876,147.74573081,146.38,146.34,16.0791296]
[1746492931273,138.5,146.38,146.34,16.0791296]
[1746492931470,147.74573081,146.38,146.34,16.0791296]
[1746492931779,154.57729214,146.38,146.34,9.24573081]
[1746492934461,147.74573081,146.38,146.34,16.07910906]
[1746492939882,138.5,146.38,146.35,9.24573081]
[1746492940074,138.5,146.38,146.36,13.24]
[1746492944191,147.74573081,146.38,146.36,13.24]
[1746492949296,138.5,146.38,146.36,13.24]
[1746492949494,147.74573081,146.38,146.36,13.24]
[1746492951390,16.0777319,146.37,146.36,13.24]
[1746492953100,9.24573081,146.37,146.36,13.24]
[1746492953397,138.5,146.38,146.36,13.24]
[1746492953607,9.24573081,146.37,146.36,13.24]
[1746492956494,138.5,146.38,146.36,13.24]
[1746492956694,138.5,146.38,146.36,20.07239749]
[1746492959300,147.74573081,146.38,146.36,20.07239749]
[1746492959502,147.74573081,146.38,146.36,13.24]
[1746492961099,147.74573081,146.38,146.35,6.83274821]
[1746492961297,9.24573081,146.36,146.32,6.8343357]
[1746492961496,147.74573081,146.38,146.33,9.24573081]
[1746492961801,147.74573081,146.38,146.34,16.07913247]
[1746492962182,138.5,146.38,146.35,9.24573081]
[1746492962698,138.5,146.38,146.36,13.24]
[1746492963411,147.74573081,146.38,146.36,13.24]
[1746492963701,9.24573081,146.37,146.36,13.24]
[1746492963875,140.0139,146.38,146.36,13.24]
[1746492964199,149.25963081,146.38,146.36,13.24]
[1746492964721,9.24573081,146.37,146.36,13.24]
[1746492965806,16.0777319,146.37,146.36,13.24]
[1746492969009,9.24573081,146.37,146.36,13.24]
[1746492970306,16.0777319,146.37,146.36,13.24]
[1746492970784,9.24573081,146.37,146.36,13.24]
[1746492971586,140.0139,146.38,146.36,13.24]
[1746492971804,138.5,146.38,146.36,13.24]
[1746492971992,147.74573081,146.38,146.36,13.24]
[1746492972811,138.5,146.38,146.36,13.24]
[1746492974713,147.74573081,146.38,146.36,13.24]
[1746492975215,147.74573081,146.38,146.36,20.07246519]
[1746492977416,147.74573081,146.38,146.36,13.24]
[1746492981024,9.24573081,146.37,146.36,13.24]
[1746492984506,138.5,146.38,146.36,13.24]
[1746492984702,9.24573081,146.37,146.31,6.83480281]
[1746492984908,9.24573081,146.36,146.32,22.48573081]
[1746492985520,9.24573081,146.36,146.33,9.24573081]
[1746492985721,9.24573081,146.36,146.33,16.07935452]
[1746492985901,145.33155439,146.38,146.33,16.07935452]
[1746492985902,9.24573081,146.37,146.33,16.07935452]
[1746492987518,9.24573081,146.37,146.34,13.24]
[1746492988021,147.74573081,146.38,146.34,29.31897494]
[1746492989828,9.24573081,146.37,146.34,20.07324413]
[1746492990725,138.5,146.38,146.34,29.31897494]
[1746492990918,9.24573081,146.37,146.34,20.07324413]
[1746492991124,9.24573081,146.37,146.34,20.07338584]
[1746492991825,9.24573081,146.37,146.34,13.24]
[1746492992422,9.24573081,146.37,146.35,13.24]
[1746492994424,147.74573081,146.38,146.35,13.24]
[1746492996724,138.5,146.38,146.35,13.24]
[1746492997934,147.74573081,146.38,146.35,13.24]
[1746493002224,9.24573081,146.37,146.34,13.24]
[1746493004332,9.24573081,146.37,146.34,20.07335554]
[1746493006137,147.74573081,146.38,146.34,20.07335554]
[1746493006641,154.57727273,146.38,146.34,20.07335554]
[1746493009430,154.57727273,146.38,146.34,13.24]
[1746493009937,154.57727273,146.38,146.34,20.0733522]
[1746493010442,147.74573081,146.38,146.34,20.0733522]
[1746493012839,9.24573081,146.37,146.34,20.0733522]
[1746493013741,147.74573081,146.38,146.34,20.0733522]
[1746493014140,138.5,146.38,146.34,20.0733522]
[1746493014348,147.74573081,146.38,146.34,29.31908301]
[1746493016843,147.74573081,146.38,146.34,20.0733522]
[1746493018242,9.24573081,146.37,146.34,20.0733522]
[1746493019933,9.24573081,146.37,146.34,13.24]
[1746493025856,154.57738747,146.38,146.34,13.24]
[1746493026150,154.57738747,146.38,146.34,20.07339117]
[1746493026352,147.74573081,146.38,146.34,29.31912198]
[1746493031464,9.24573081,146.37,146.35,13.22]
[1746493037646,147.74573081,146.38,146.35,20.05288474]
[1746493050675,147.74573081,146.38,146.36,13.22]
[1746493052463,138.5,146.38,146.36,13.22]
[1746493055785,147.74573081,146.38,146.36,13.22]
[1746493055960,154.57733342,146.38,146.36,13.22]
[1746493056161,147.74573081,146.38,146.36,13.22]
[1746493058287,9.24573081,146.37,146.36,13.22]
[1746493062583,147.74573081,146.38,146.36,13.22]
[1746493069905,147.74573081,146.38,146.35,13.22]
[1746493080403,138.5,146.38,146.35,13.22]
[1746493081104,138.5,146.38,146.35,29.29862542]
[1746493087017,138.5,146.38,146.37,9.24573081]
[1746493087688,138.5,146.38,146.36,9.24573081]
[1746493088292,138.5,146.41,146.37,16.0777319]
[1746493088491,138.5,146.41,146.38,9.24573081]
[1746493089698,147.74573081,146.41,146.37,16.0777319]
[1746493095022,138.5,146.41,146.38,9.24573081]
[1746493095219,15.88163081,146.44,146.4,9.24573081]
[1746493095423,15.88163081,146.44,146.41,13.22]
[1746493096030,9.24573081,146.43,146.41,13.22]
[1746493100025,9.24573081,146.43,146.41,20.05008049]
[1746493101022,6.6359,146.44,146.41,29.2958113]
[1746493101326,147.74573081,146.45,146.41,29.2958113]
[1746493101824,9.24573081,146.44,146.41,20.05008049]
[1746493103938,9.24573081,146.44,146.41,19.49191926]
[1746493104114,138.5,146.45,146.41,19.49191926]
[1746493104307,9.24573081,146.44,146.41,19.49191926]
[1746493105330,138.5,146.45,146.41,28.73765007]
[1746493105522,147.74573081,146.45,146.41,28.73765007]
[1746493112023,9.24573081,146.44,146.41,19.49191926]
[1746493115341,138.5,146.45,146.41,19.49191926]
[1746493115519,9.24573081,146.44,146.41,19.49191926]
[1746493118232,9.24573081,146.44,146.41,6.83008049]
[1746493118439,9.24573081,146.44,146.42,13.22]
[1746493119720,147.74573081,146.45,146.42,20.0496015]
[1746493120533,138.5,146.45,146.42,20.0496015]
[1746493120937,147.74573081,146.45,146.42,20.0496015]
[1746493126249,9.24573081,146.44,146.42,13.22]
[1746493126632,9.24573081,146.44,146.42,20.04965323]
[1746493127840,9.24573081,146.43,146.42,13.22]
[1746493128142,9.24573081,146.44,146.42,13.22]
[1746493132137,138.5,146.45,146.42,20.04961806]
[1746493132343,9.24573081,146.44,146.42,20.04961806]
[1746493132526,147.74573081,146.45,146.42,20.04961806]
[1746493137955,138.5,146.45,146.42,20.04961806]
[1746493138547,138.5,146.45,146.42,29.29534887]
[1746493143156,147.74573081,146.45,146.42,20.04961806]
[1746493151878,147.74573081,146.45,146.43,20.02890687]
[1746493155470,9.24573081,146.44,146.43,20.02890687]
[1746493159483,138.5,146.45,146.43,20.02890687]
[1746493159785,147.74573081,146.45,146.43,20.02890687]
[1746493161471,147.74573081,146.45,146.44,13.2]
[1746493163786,147.74573081,146.45,146.44,20.02873531]
[1746493164498,138.5,146.45,146.44,20.02873531]
[1746493170079,9.24573081,146.46,146.44,20.02873531]
[1746493171379,144.6273,146.48,146.44,20.02873531]
[1746493171684,9.24573081,146.47,146.44,20.02873531]
[1746493173181,9.24573081,146.46,146.44,20.02873531]
[1746493173386,9.24573081,146.45,146.44,20.02873531]
[1746493174162,9.24573081,146.46,146.44,20.02873531]
[1746493176381,138.5,146.48,146.44,20.02873531]
[1746493176574,9.24573081,146.46,146.44,20.02873531]
[1746493177586,9.24573081,146.47,146.44,20.02873531]
[1746493178163,9.24573081,146.46,146.44,20.02873531]
[1746493178982,9.24573081,146.47,146.44,20.02873531]
[1746493179988,147.74573081,146.48,146.44,20.02873531]
[1746493180166,138.5,146.48,146.44,29.27446612]
[1746493180360,9.24573081,146.46,146.44,20.02873531]
[1746493181688,9.24573081,146.47,146.44,20.02873531]
[1746493185277,147.74573081,146.48,146.44,20.02873531]
[1746493185588,9.24573081,146.47,146.44,20.02873531]
[1746493189290,147.74573081,146.48,146.44,20.02873531]
[1746493190296,147.74573081,146.48,146.45,13.2]
[1746493191689,147.74573081,146.48,146.45,20.02804471]
[1746493191895,138.5,146.48,146.45,20.02804471]
[1746493192396,138.5,146.48,146.45,29.27377552]
[1746493193198,138.5,146.48,146.45,20.02804471]
[1746493197101,147.74573081,146.48,146.45,20.02804471]
[1746493199696,138.5,146.48,146.45,20.02804471]
[1746493200602,9.24573081,146.5,146.45,29.27377552]
[1746493200790,9.24573081,146.5,146.46,9.24573081]
[1746493201299,9.24573081,146.5,146.45,29.27377552]
[1746493203107,9.24573081,146.5,146.45,20.02804471]
[1746493203411,9.24573081,146.49,146.45,29.27377552]
[1746493207013,9.24573081,146.49,146.45,20.02804471]
[1746493207216,9.24573081,146.49,146.45,29.27377552]
[1746493214616,9.24573081,146.49,146.45,20.02804471]
[1746493215003,9.24573081,146.49,146.45,29.27377552]
[1746493216620,9.24573081,146.49,146.45,20.02804471]
[1746493216921,9.24573081,146.48,146.45,20.02804471]
[1746493225030,9.24573081,146.47,146.45,20.02804471]
[1746493227238,9.24573081,146.48,146.45,20.02804471]
[1746493228131,9.24573081,146.48,146.45,13.2]
[1746493228332,9.24573081,146.46,146.45,13.2]
[1746493232426,9.24573081,146.47,146.45,13.2]
[1746493236434,138.5,146.48,146.45,13.2]
[1746493236633,9.24573081,146.47,146.45,13.2]
[1746493238437,138.5,146.48,146.45,20.02821167]
[1746493238642,138.5,146.48,146.46,9.24573081]
[1746493239148,138.5,146.48,146.45,29.27394248]
[1746493239728,138.5,146.48,146.47,16.07306746]
[1746493239926,9.24573081,146.52,146.47,16.07306746]
[1746493240237,145.32379598,146.55,146.49,9.24573081]
[1746493240423,9.24573081,146.53,146.5,13.18]
[1746493240614,164.5,146.54,146.5,13.18]
[1746493240814,9.24573081,146.53,146.5,13.18]
[1746493242831,9.24573081,146.53,146.5,20.00563128]
[1746493243426,138.5,146.54,146.5,29.25136209]
[1746493243940,147.74573081,146.54,146.5,29.25136209]
[1746493244840,138.5,146.54,146.51,9.24573081]
[1746493246029,138.5,146.54,146.52,6.82500682]
[1746493247149,138.5,146.54,146.5,13.18]
[1746493247328,9.24573081,146.52,146.5,13.18]
[1746493247640,9.24573081,146.52,146.5,20.00590296]
[1746493248230,6.0805,146.56,146.5,29.25163377]
[1746493248553,15.32623081,146.56,146.51,9.24573081]
[1746493248965,6.0805,146.56,146.52,9.24573081]
[1746493249132,147.74573081,146.57,146.53,9.24573081]
[1746493250424,138.5,146.57,146.54,6.82407533]
[1746493250639,147.74573081,146.57,146.55,13.18]
[1746493252553,147.57511728,146.57,146.55,13.18]
[1746493252740,147.57511728,146.57,146.55,20.00352376]
[1746493252944,138.32938647,146.57,146.55,20.00352376]
[1746493253253,147.57511728,146.57,146.55,20.00352376]
[1746493255263,138.32938647,146.57,146.55,20.00352376]
[1746493255456,138.32938647,146.57,146.55,29.24925457]
[1746493256050,138.32938647,146.57,146.55,20.00352376]
[1746493256656,147.57511728,146.57,146.55,20.00352376]
[1746493257270,9.24573081,146.57,146.55,20.00352376]
[1746493260574,9.24573081,146.56,146.55,13.18]
[1746493262481,41.02446299,146.6,146.55,13.18]
[1746493262668,9.24573081,146.57,146.55,13.18]
[1746493264948,145.15123582,146.59,146.55,13.18]
[1746493265147,9.24573081,146.57,146.55,13.18]
[1746493265674,145.15123582,146.59,146.55,13.18]
[1746493265867,9.24573081,146.58,146.55,13.18]
[1746493266069,9.24573081,146.57,146.55,13.18]
[1746493267448,138.32938647,146.59,146.55,20.00358039]
[1746493267876,9.24573081,146.58,146.55,20.00358039]
[1746493268962,138.32938647,146.59,146.56,9.24573081]
[1746493269671,138.32938647,146.59,146.55,29.2493112]
[1746493269874,147.57511728,146.59,146.55,29.2493112]
[1746493270084,138.32938647,146.59,146.56,9.24573081]
[1746493270291,138.32938647,146.59,146.57,9.24573081]
[1746493270456,9.24573081,146.61,146.57,9.24573081]
[1746493271957,9.24573081,146.62,146.57,9.24573081]
[1746493272174,138.32938647,146.63,146.57,9.24573081]
[1746493272379,9.24573081,146.62,146.58,16.06794393]
[1746493272678,138.32938647,146.63,146.58,16.06794393]
[1746493272885,9.24573081,146.62,146.58,16.06794393]
[1746493273477,147.57511728,146.63,146.59,9.24573081]
[1746493273773,147.57511728,146.63,146.6,13.18]
[1746493274274,138.32938647,146.67,146.6,29.24676175]
[1746493274480,138.32938647,146.67,146.62,9.24573081]
[1746493274659,9.24573081,146.65,146.61,9.24573081]
[1746493275397,9.24573081,146.65,146.6,46.29996775]
[1746493275687,9.24573081,146.64,146.6,29.24676175]
[1746493275857,9.24573081,146.63,146.6,20.00103094]
[1746493276057,9.24573081,146.64,146.6,20.00103094]
[1746493276390,138.32938647,146.67,146.62,9.24573081]
[1746493276575,9.24573081,146.66,146.62,9.24573081]
[1746493277689,145.14743834,146.67,146.61,16.06611649]
[1746493277980,9.24573081,146.65,146.61,16.06611649]
[1746493278490,138.32938647,146.67,146.62,9.24573081]
[1746493278669,138.32938647,146.67,146.63,9.24573081]
[1746493278977,138.32938647,146.67,146.64,9.24573081]
[1746493279188,138.32938647,146.67,146.65,13.22]
[1746493279393,27.5452,146.69,146.65,22.46573081]
[1746493279597,9.24573081,146.68,146.65,13.22]
[1746493279891,9.24573081,146.68,146.65,20.0388781]
[1746493281794,144.88128647,146.71,146.65,29.28460891]
[1746493282096,9.24573081,146.7,146.67,6.81802686]
[1746493282592,8.69573081,146.7,146.67,6.81802686]
[1746493283474,154.12701728,146.71,146.67,6.81802686]
[1746493283670,138.32938647,146.71,146.69,9.24573081]
[1746493283884,41.27683081,146.74,146.7,22.44573081]
[1746493284083,9.24573081,146.73,146.7,13.2]
[1746493285275,6.0311,146.74,146.7,13.2]
[1746493285474,9.24573081,146.72,146.7,13.2]
[1746493285670,12.84599433,146.74,146.7,13.2]
[1746493285886,14.34545741,146.71,146.7,13.2]
[1746493286485,12.84599433,146.74,146.7,13.2]
[1746493286698,14.34545741,146.71,146.7,13.2]
[1746493289097,14.34545741,146.72,146.7,13.2]
[1746493289605,12.84599433,146.74,146.7,13.2]
[1746493289770,14.34545741,146.73,146.7,20.01641881]
[1746493289971,20.37655741,146.74,146.7,34.36187622]
[1746493290388,14.34545741,146.73,146.7,20.01641881]
[1746493290769,20.37655741,146.74,146.7,20.01641881]
[1746493291199,138.32938647,146.75,146.71,14.34545741]
[1746493291375,14.34545741,146.76,146.72,14.34545741]